bitfinex/quotes_SOLUSD_20240703
["timestamp","ask_amount","ask_price","bid_price","bid_amount"]
[1720031041573,20.4382,142.08,142.04,24.6403]
[1720031042851,13.4,142.05,142.01,17.6033]
[1720031043155,13.4,142.04,142.01,17.6033]
[1720031043368,13.4,142.04,142.01,24.6447]
[1720031044768,7.0398,142.05,142.01,24.6447]
[1720031044952,13.4,142.04,142.01,24.6447]
[1720031047056,13.4,142.05,142.01,17.6033]
[1720031047250,40.007,142.11,142.01,31.0033]
[1720031047447,13.4,142.06,142.01,31.0033]
[1720031047856,13.4,142.06,142.04,7.0399]
[1720031048170,13.4,142.07,142.04,7.0399]
[1720031048348,13.4,142.06,142.04,7.0399]
[1720031048955,13.4,142.06,142.03,24.6423]
[1720031049353,40.007,142.11,142.03,17.6018]
[1720031049566,7.038,142.09,142.05,7.0394]
[1720031049767,13.4,142.07,142.05,7.0394]
[1720031049961,13.4,142.08,142.05,7.0394]
[1720031050362,13.4,142.07,142.05,7.0394]
[1720031050869,7.038,142.09,142.05,7.0394]
[1720031050870,13.4,142.08,142.05,7.0394]
[1720031051470,7.0383,142.08,142.04,7.04]
[1720031051777,13.4,142.08,142.05,7.0396]
[1720031052071,20.4383,142.08,142.04,24.6394]
[1720031053065,13.4,142.08,142.05,7.0396]
[1720031053579,13.4,142.07,142.05,7.0396]
[1720031055081,13.4,142.08,142.05,7.0396]
[1720031056581,13.4,142.09,142.06,17.5974]
[1720031056793,13.4,142.09,142.07,7.0387]
[1720031058667,7.0371,142.11,142.07,7.0387]
[1720031058856,13.4,142.09,142.07,7.0387]
[1720031059663,7.0376,142.1,142.06,24.6366]
[1720031059883,13.4,142.08,142.06,17.5974]
[1720031060077,13.4,142.08,142.05,7.0395]
[1720031062567,13.4,142.08,142.06,7.0392]
[1720031063173,7.0375,142.1,142.06,7.0392]
[1720031063374,13.4,142.08,142.06,7.0392]
[1720031063867,13.4,142.08,142.05,7.0396]
[1720031064176,13.4,142.08,142.06,7.0392]
[1720031065575,7.0374,142.1,142.06,7.0392]
[1720031065767,13.4,142.08,142.06,7.0392]
[1720031065972,13.4,142.09,142.06,7.0392]
[1720031067076,13.4,142.09,142.04,31.0006]
[1720031067077,7.0379,142.09,142.05,7.0396]
[1720031067278,13.4,142.07,142.04,17.6006]
[1720031067681,13.4,142.07,142.04,24.6406]
[1720031068683,13.4,142.07,142.05,7.0397]
[1720031070665,7.0379,142.09,142.05,7.0397]
[1720031071087,13.4,142.07,142.05,7.0397]
[1720031071371,7.0379,142.09,142.05,7.0397]
[1720031071691,13.4,142.08,142.06,7.0392]
[1720031071991,7.037,142.11,142.07,7.0387]
[1720031072285,13.4,142.08,142.07,7.0387]
[1720031072796,13.4,142.09,142.07,7.0387]
[1720031074979,13.4,142.09,142.06,24.6371]
[1720031076867,20.4379,142.09,142.06,17.5981]
[1720031077077,7.0379,142.09,142.06,17.5981]
[1720031077276,20.4379,142.09,142.06,17.5981]
[1720031080098,7.0379,142.09,142.06,17.5981]
[1720031080299,20.4379,142.09,142.06,17.5981]
[1720031081793,17.5946,142.09,142.03,16.5651]
[1720031081999,13.4,142.06,142.03,23.6058]
[1720031082390,20.4392,142.06,142.03,16.5651]
[1720031083194,13.4,142.06,142.03,23.6058]
[1720031084493,13.4,142.06,142.04,7.0402]
[1720031085689,13.4,142.06,142.05,7.0397]
[1720031085903,13.4,142.07,142.05,7.0397]
[1720031086101,13.4,142.08,142.06,7.0392]
[1720031086588,13.4,142.07,142.05,7.0395]
[1720031086983,13.4,142.07,142.06,7.0392]
[1720031089296,13.4,142.08,142.06,7.0392]
[1720031090403,7.0374,142.1,142.06,7.0392]
[1720031090591,13.4,142.08,142.06,7.0392]
[1720031090792,13.4,142.08,142.06,24.6373]
[1720031091007,7.0374,142.1,142.07,7.0387]
[1720031091192,13.4,142.09,142.07,7.0387]
[1720031091987,7.037,142.11,142.07,7.0387]
[1720031092200,13.4,142.09,142.07,7.0387]
[1720031092601,7.037,142.11,142.07,7.0387]
[1720031092806,13.4,142.09,142.07,7.0387]
[1720031093008,13.4,142.09,142.06,24.6371]
[1720031094812,7.0373,142.1,142.06,24.6371]
[1720031094991,13.4,142.09,142.06,24.6371]
[1720031096708,7.0373,142.1,142.06,24.6371]
[1720031096889,13.4,142.09,142.06,24.6371]
[1720031100217,20.4377,142.09,142.05,7.2097]
[1720031100423,20.4377,142.09,142.05,7.0397]
[1720031100804,27.31827552,142.14,142.06,17.5976]
[1720031101015,20.4376,142.1,142.06,24.6367]
[1720031101221,13.4,142.08,142.03,40.4338]
[1720031101427,7.0385,142.08,142.04,7.0402]
[1720031101611,13.4,142.07,142.04,7.0402]
[1720031101808,13.4,142.07,142.03,41.2067]
[1720031101809,20.4388,142.07,142.03,41.2067]
[1720031102027,20.4393,142.06,142.03,17.6011]
[1720031102228,20.4398,142.05,142.02,7.0412]
[1720031102635,13.4,142.05,142.0,53.0763]
[1720031102808,13.4,142.05,142.02,17.6031]
[1720031103327,13.4,142.05,142.03,7.0404]
[1720031103830,13.4,142.06,142.03,7.0404]
[1720031105809,7.0374,142.1,142.06,7.0392]
[1720031106010,13.4,142.09,142.06,7.0392]
[1720031107018,7.0374,142.1,142.06,7.0392]
[1720031107429,13.4,142.1,142.07,7.0386]
[1720031108934,20.4373,142.1,142.06,7.039]
[1720031109933,20.4373,142.1,142.07,1.20290087]
[1720031110710,20.4378,142.09,142.05,40.0055]
[1720031114238,7.0378,142.09,142.05,40.0055]
[1720031114411,20.4378,142.09,142.05,40.0055]
[1720031115418,7.0378,142.09,142.05,40.0055]
[1720031115617,20.4378,142.09,142.05,40.0055]
[1720031117514,13.4,142.1,142.02,17.602]
[1720031117719,13.4,142.06,142.02,17.602]
[1720031117926,13.4,142.06,142.03,7.0406]
[1720031118119,53.6,142.1,142.02,17.602]
[1720031118852,7.0389,142.07,142.03,7.0404]
[1720031119050,53.6,142.1,142.04,17.6006]
[1720031119215,13.4,142.07,142.04,17.6006]
[1720031119419,13.4,142.07,142.05,21.6166]
[1720031119719,13.4,142.13,142.12,7.0363]
[1720031119924,0.8488404,142.16,142.12,7.0363]
[1720031120121,13.4,142.15,142.13,7.0357]
[1720031121135,13.4,142.14,142.12,17.5904]
[1720031122632,13.4,142.14,142.12,24.6265]
[1720031123948,13.4,142.14,142.09,17.5935]
[1720031124248,13.4,142.13,142.09,17.5935]
[1720031124415,13.4,142.13,142.1,7.0369]
[1720031124820,7.0356,142.14,142.1,7.0369]
[1720031125037,13.4,142.12,142.1,7.0369]
[1720031125342,13.4,142.11,142.1,7.0369]
[1720031125921,13.4,142.11,142.09,24.6311]
[1720031126334,13.4,142.11,142.06,13.4]
[1720031126335,13.4,142.1,142.07,7.0386]
[1720031126724,13.4,142.09,142.07,7.0386]
[1720031126927,13.4,142.1,142.08,24.6338]
[1720031127129,0.8488404,142.16,142.1,17.5931]
[1720031127333,13.4,142.11,142.1,24.6299]
[1720031127916,7.0349,142.15,142.1,24.6299]
[1720031128125,13.4,142.11,142.1,24.6299]
[1720031128333,7.0349,142.15,142.11,7.0364]
[1720031128334,13.4,142.12,142.11,7.0364]
[1720031128730,13.4,142.13,142.11,7.0364]
[1720031129339,7.0348,142.15,142.11,7.0364]
[1720031129563,13.4,142.13,142.11,7.0364]
[1720031129847,13.4,142.12,142.11,7.0364]
[1720031130748,13.4,142.12,142.1,24.6302]
[1720031138055,13.4,142.12,142.11,7.0368]
[1720031138852,13.4,142.13,142.11,7.0368]
[1720031140732,13.4,142.13,142.1,24.6302]
[1720031143766,7.035,142.15,142.11,7.0367]
[1720031143962,13.4,142.14,142.12,7.036]
[1720031144336,13.4,142.14,142.12,24.6267]
[1720031144531,13.4,142.14,142.12,17.5907]
[1720031144733,13.4,142.15,142.12,24.6267]
[1720031146736,13.4,142.14,142.12,24.6267]
[1720031149758,13.4,142.15,142.12,24.6267]
[1720031150137,13.4,142.15,142.13,7.0357]
[1720031151243,0.8488404,142.16,142.13,7.0357]
[1720031151460,13.4,142.15,142.13,7.0357]
[1720031151962,13.4,142.15,142.12,24.6267]
[1720031152257,20.4348,142.15,142.1,30.9931]
[1720031152455,0.8488404,142.16,142.1,17.5931]
[1720031152838,7.8835404,142.16,142.12,7.0362]
[1720031153862,7.0348,142.15,142.11,7.0365]
[1720031154664,13.4,142.14,142.12,7.0362]
[1720031156953,13.4,142.14,142.1,17.5931]
[1720031157262,20.4353,142.14,142.1,24.6299]
[1720031157852,0.8488404,142.16,142.09,16.2354]
[1720031158043,13.4,142.14,142.1,0.34]
[1720031158248,13.4,142.14,142.12,7.0363]
[1720031158868,13.4,142.15,142.12,7.0363]
[1720031159863,13.4,142.15,142.11,17.5919]
[1720031159864,0.8488404,142.16,142.13,7.0355]
[1720031160175,13.4,142.15,142.13,24.6251]
[1720031160347,13.4,142.15,142.13,17.5895]
[1720031160547,13.4,142.14,142.13,17.5895]
[1720031161268,13.4,142.15,142.13,24.6252]
[1720031161763,13.4,142.14,142.12,7.0361]
[1720031162546,13.4,142.14,142.11,24.6285]
[1720031162749,7.0353,142.14,142.11,17.5919]
[1720031163039,13.4,142.12,142.11,17.5919]
[1720031163244,13.4,142.12,142.09,24.6319]
[1720031163447,13.4,142.1,142.08,7.0378]
[1720031163855,13.4,142.1,142.06,13.4]
[1720031163856,13.4,142.1,142.09,7.0377]
[1720031165549,7.0361,142.13,142.09,7.0377]
[1720031165868,13.4,142.12,142.09,7.0377]
[1720031168863,13.4,142.11,142.09,7.0377]
[1720031170976,13.4,142.11,142.08,24.6336]
[1720031174075,0.8488404,142.16,142.1,17.5927]
[1720031174289,13.4,142.12,142.1,24.6298]
[1720031174762,13.4,142.13,142.1,24.6298]
[1720031176480,7.0353,142.14,142.1,24.6298]
[1720031176655,13.4,142.13,142.1,24.6298]
[1720031178166,13.4,142.13,142.12,7.0363]
[1720031178379,0.8488404,142.16,142.15,7.0348]
[1720031178572,0.8488404,142.16,142.15,20.7748]
[1720031178789,0.8488404,142.16,142.15,21.67555421]
[1720031178962,0.8488404,142.16,142.15,22.10734827]
[1720031180387,0.8488404,142.16,142.15,7.3748]
[1720031180889,0.8488404,142.16,142.15,20.7748]
[1720031181197,0.8488404,142.16,142.15,7.0348]
[1720031182090,0.8488404,142.16,142.14,24.6229]
[1720031182293,0.8488404,142.16,142.11,16.5714]
[1720031182294,13.4,142.15,142.13,7.0354]
[1720031182470,14.2488404,142.16,142.14,7.0352]
[1720031182670,0.8488404,142.16,142.15,7.0348]
[1720031186293,0.8488404,142.16,142.15,20.7748]
[1720031187297,0.8488404,142.16,142.15,20.6048]
[1720031187878,0.8488404,142.16,142.15,38.1918]
[1720031188490,0.8488404,142.16,142.15,38.3618]
[1720031188688,0.8488404,142.16,142.15,38.77808317]
[1720031189490,0.8488404,142.16,142.15,39.7683591]
[1720031189987,0.8488404,142.16,142.15,38.3618]
[1720031222603,0.8488404,142.16,142.15,24.6218]
[1720031222823,0.8488404,142.16,142.15,38.0218]
[1720031223043,0.8488404,142.16,142.15,24.6218]
[1720031223930,0.8488404,142.16,142.15,38.0218]
[1720031224122,0.8488404,142.16,142.15,38.3618]
[1720031225708,0.8488404,142.16,142.15,39.38137541]
[1720031226631,0.8488404,142.16,142.15,38.3618]
[1720031237838,0.8488404,142.16,142.15,24.9618]
[1720031238070,0.8488404,142.16,142.15,38.3618]
[1720031244444,6.259,142.25,142.22,7.031]
[1720031244837,19.659,142.25,142.22,7.031]
[1720031245348,15.6875,142.29,142.26,7.029]
[1720031245564,13.4,142.28,142.26,7.029]
[1720031246049,15.6875,142.29,142.27,17.5716]
[1720031246247,29.0875,142.29,142.27,17.5716]
[1720031246452,29.0875,142.29,142.27,24.6002]
[1720031247239,15.6875,142.29,142.27,24.6002]
[1720031247437,29.0875,142.29,142.27,24.6002]
[1720031248553,15.6875,142.29,142.27,24.6002]
[1720031248856,0.8488404,142.3,142.28,7.0282]
[1720031251135,0.8488404,142.3,142.29,7.0279]
[1720031251960,0.8488404,142.3,142.28,7.0281]
[1720031252159,0.8488404,142.3,142.29,7.0279]
[1720031253028,0.8488404,142.3,142.29,8.60184072]
[1720031253230,0.8488404,142.3,142.29,22.17184072]
[1720031254132,21.2762404,142.3,142.29,0.17]
[1720031254328,21.2765404,142.3,142.26,17.5733]
[1720031254655,13.4,142.28,142.26,24.6023]
[1720031254835,13.4,142.29,142.26,17.5733]
[1720031255162,7.0279,142.29,142.24,7.0302]
[1720031255475,23.3826404,142.3,142.24,7.0302]
[1720031255640,13.4,142.27,142.25,7.0297]
[1720031257262,13.4,142.28,142.27,7.0288]
[1720031258053,13.4,142.29,142.27,7.0288]
[1720031258254,23.3826404,142.3,142.27,7.0288]
[1720031258448,23.3826404,142.3,142.27,24.6009]
[1720031258759,23.3826404,142.3,142.29,7.0279]
[1720031258760,0.8488404,142.3,142.29,7.0279]
[1720031258959,0.8488404,142.3,142.29,7.1979]
[1720031261337,0.8488404,142.3,142.29,8.77182902]
[1720031264271,0.8488404,142.3,142.29,7.1979]
[1720031267046,0.8488404,142.3,142.29,7.3679]
[1720031267656,13.4,142.41,142.38,7.0232]
[1720031267854,13.4,142.41,142.29,173.49445663]
[1720031267855,22.0074,142.42,142.32,21.14]
[1720031268057,13.4,142.41,142.39,17.5568]
[1720031268351,22.0074,142.42,142.4,7.0224]
[1720031268662,35.4074,142.42,142.4,7.0224]
[1720031268850,29.0832,142.42,142.4,7.0224]
[1720031269746,29.0832,142.42,142.39,24.5795]
[1720031269942,13.4,142.41,142.39,17.5568]
[1720031270790,13.4,142.41,142.39,24.5795]
[1720031271053,29.0832,142.42,142.39,24.5795]
[1720031272373,7.0206,142.44,142.39,24.5796]
[1720031272554,13.4,142.42,142.39,24.5796]
[1720031272956,7.0206,142.44,142.39,24.5796]
[1720031273253,0.8488404,142.45,142.44,7.0204]
[1720031273465,0.8488404,142.45,142.43,24.5728]
[1720031274252,7.8689404,142.45,142.41,7.0216]
[1720031274456,13.4,142.42,142.41,7.0216]
[1720031274669,0.8488404,142.45,142.4,17.5557]
[1720031274979,13.4,142.42,142.41,7.0218]
[1720031275144,13.4,142.43,142.41,7.0218]
[1720031275347,0.8488404,142.45,142.42,7.0214]
[1720031275612,13.4,142.44,142.43,7.0209]
[1720031275865,0.8488404,142.45,142.43,7.0209]
[1720031276465,0.8488404,142.45,142.42,24.5748]
[1720031278357,0.8488404,142.45,142.43,7.0206]
[1720031278593,0.8488404,142.45,142.44,7.0204]
[1720031278752,0.8488404,142.45,142.43,7.0209]
[1720031279074,0.8488404,142.45,142.43,7.0208]
[1720031280174,0.8488404,142.45,142.42,24.5748]
[1720031280374,0.8488404,142.45,142.42,24.5749]
[1720031281059,0.8488404,142.45,142.44,7.0204]
[1720031281677,0.8488404,142.45,142.43,7.0208]
[1720031282564,0.8488404,142.45,142.42,17.5535]
[1720031282565,0.8488404,142.45,142.42,24.5749]
[1720031282762,0.8488404,142.45,142.42,17.5535]
[1720031283487,5.96457552,142.51,142.38,35.1171]
[1720031283488,26.56,142.6,142.44,47.7]
[1720031283678,0.041716,142.61,142.56,7.0145]
[1720031283979,26.601716,142.61,142.54,17.5388]
[1720031284393,7.8622404,142.59,142.54,24.5543]
[1720031285266,0.8488404,142.59,142.57,7.0137]
[1720031285681,0.8488404,142.59,142.56,24.5503]
[1720031285972,0.8488404,142.59,142.56,17.5359]
[1720031286159,0.8488404,142.59,142.53,17.5394]
[1720031286364,0.8488404,142.59,142.55,7.0149]
[1720031287288,0.8488404,142.59,142.56,7.0143]
[1720031287665,0.8488404,142.59,142.57,17.5349]
[1720031287860,0.8488404,142.59,142.57,24.5488]
[1720031289890,0.8488404,142.59,142.57,17.5349]
[1720031290383,0.8488404,142.59,142.57,24.5489]
[1720031290564,0.8488404,142.59,142.57,17.5349]
[1720031291378,0.8488404,142.59,142.57,24.5489]
[1720031293173,0.8488404,142.59,142.56,7.0144]
[1720031293479,0.8488404,142.59,142.57,8.41476615]
[1720031293674,0.8488404,142.59,142.57,7.0138]
[1720031293875,0.8488404,142.59,142.56,24.55]
[1720031296589,0.8488404,142.59,142.56,17.5356]
[1720031297276,7.8620404,142.59,142.54,7.0151]
[1720031297476,7.0136,142.58,142.54,7.0151]
[1720031297684,0.8488404,142.59,142.55,7.0149]
[1720031298105,7.8623404,142.59,142.54,7.0154]
[1720031298468,0.8488404,142.59,142.55,7.0149]
[1720031299773,14.0988404,142.59,142.56,7.0145]
[1720031299993,0.8488404,142.59,142.55,37.8023]
[1720031300184,0.8488404,142.59,142.56,7.0145]
[1720031300771,0.8488404,142.59,142.53,7.1828]
[1720031300976,13.25,142.55,142.53,7.0128]
[1720031301191,20.2651,142.55,142.5,20.2673]
[1720031301781,20.2651,142.55,142.51,7.0169]
[1720031301782,13.25,142.55,142.51,7.0169]
[1720031302174,7.0147,142.56,142.52,7.0164]
[1720031302543,7.0146,142.56,142.52,7.0164]
[1720031302708,13.25,142.54,142.5,7.0171]
[1720031302871,13.25,142.53,142.5,7.0171]
[1720031303777,7.0152,142.55,142.5,7.0171]
[1720031303983,7.0158,142.54,142.49,7.0178]
[1720031304385,7.0151,142.55,142.5,7.0172]
[1720031305116,15.2945,142.56,142.48,24.5634]
[1720031305412,15.2945,142.56,142.48,17.5453]
[1720031305619,7.0159,142.54,142.49,7.018]
[1720031306214,7.0168,142.52,142.48,17.5453]
[1720031306425,7.017,142.51,142.48,17.5453]
[1720031306707,7.0166,142.52,142.48,24.5638]
[1720031307215,7.0162,142.53,142.48,24.5638]
[1720031307581,7.0162,142.53,142.44,35.1022]
[1720031307582,7.0167,142.52,142.47,7.0185]
[1720031307777,7.0172,142.51,142.47,7.0185]
[1720031308213,7.0166,142.52,142.48,7.0184]
[1720031310183,7.0166,142.52,142.47,17.5473]
[1720031310383,7.0166,142.52,142.48,7.0182]
[1720031310687,7.0162,142.53,142.48,7.0182]
[1720031311318,7.0167,142.52,142.48,7.0182]
[1720031311806,7.0167,142.52,142.47,24.5661]
[1720031312490,7.0167,142.52,142.48,7.0184]
[1720031312908,7.0167,142.52,142.47,17.5473]
[1720031312909,7.0162,142.53,142.49,7.018]
[1720031315120,7.0157,142.54,142.5,7.0173]
[1720031315409,7.0157,142.54,142.49,17.545]
[1720031315410,7.0162,142.53,142.49,17.545]
[1720031315721,7.0162,142.53,142.49,24.5629]
[1720031316515,7.0153,142.55,142.51,7.0169]
[1720031317320,7.0157,142.54,142.5,8.42085197]
[1720031317688,7.0157,142.54,142.5,7.0173]
[1720031317900,7.0157,142.54,142.49,24.5628]
[1720031318114,7.0171,142.51,142.47,7.0187]
[1720031318290,17.5379,142.55,142.47,7.0187]
[1720031318497,7.0167,142.52,142.48,7.0183]
[1720031320790,7.0162,142.53,142.49,7.0177]
[1720031321116,7.0162,142.53,142.49,8.42121301]
[1720031321288,7.0162,142.53,142.49,7.0177]
[1720031322496,7.0157,142.54,142.5,24.5608]
[1720031323202,7.016,142.53,142.49,7.0178]
[1720031323721,13.27,142.52,142.49,7.0178]
[1720031323904,13.27,142.51,142.49,7.0178]
[1720031325591,0.8488404,142.59,142.52,21.14]
[1720031325812,0.8488404,142.59,142.58,7.0136]
[1720031326488,0.8488404,142.59,142.58,8.4160304]
[1720031326790,0.8488404,142.59,142.58,21.6860304]
[1720031327701,0.8488404,142.59,142.58,8.4160304]
[1720031328132,0.8488404,142.59,142.58,7.0136]
[1720031331907,0.8488404,142.59,142.58,7.1836]
[1720031333032,0.8488404,142.59,142.58,7.0136]
[1720031333840,0.8488404,142.59,142.58,7.1836]
[1720031334006,0.8488404,142.59,142.58,7.53649926]
[1720031334208,0.8488404,142.59,142.58,8.58592316]
[1720031335036,0.8488404,142.59,142.58,8.75592316]
[1720031339138,0.8488404,142.59,142.58,7.1836]
[1720031341418,0.8488404,142.59,142.58,8.58402872]
[1720031342136,0.8488404,142.59,142.58,7.0136]
[1720031344515,0.8488404,142.59,142.58,14.0243]
[1720031346813,0.8488404,142.59,142.58,7.0136]
[1720031348735,0.8488404,142.59,142.58,8.07866174]
[1720031349823,4.9261,142.57,142.44,1.21243182]
[1720031350044,6.3919,142.49,142.46,30.0]
[1720031350231,26.5,142.47,142.39,7.3156757]
[1720031350431,26.5,142.43,142.36,22.7352]
[1720031350675,26.5,142.43,142.36,16.3433]
[1720031350826,26.5,142.43,142.37,17.5588]
[1720031351064,26.5,142.43,142.37,38.6988]
[1720031351565,26.5,142.43,142.37,17.5588]
[1720031351733,33.5214,142.43,142.37,24.5826]
[1720031351943,26.5,142.41,142.37,17.5588]
[1720031352122,8.08556174,142.44,142.37,24.5827]
[1720031352440,26.5,142.4,142.35,7.0246]
[1720031352639,33.5225,142.4,142.35,7.0246]
[1720031353542,33.5225,142.4,142.34,7.0253]
[1720031353741,33.5225,142.4,142.35,0.34]
[1720031356433,26.5,142.4,142.35,7.3647]
[1720031356643,7.0215,142.42,142.36,7.0243]
[1720031356821,26.5,142.4,142.37,0.34]
[1720031357950,26.5,142.4,142.33,17.5647]
[1720031357951,26.5,142.4,142.33,38.7047]
[1720031358176,26.5,142.4,142.34,7.3653]
[1720031358177,7.0231,142.39,142.34,7.3653]
[1720031358326,26.5,142.4,142.34,28.5053]
[1720031358669,33.5225,142.4,142.34,28.5053]
[1720031360348,16.1155,142.55,142.43,7.0209]
[1720031360550,26.5,142.51,142.44,0.34]
[1720031360896,33.90386174,142.53,142.44,24.9115]
[1720031361062,33.90386174,142.53,142.44,17.8911]
[1720031361233,33.90386174,142.53,142.44,24.9114]
[1720031361556,7.0181,142.49,142.44,17.8911]
[1720031362446,7.0186,142.48,142.44,17.8911]
[1720031362843,7.019,142.47,142.44,0.34]
[1720031364462,24.94496174,142.53,142.44,21.14]
[1720031364665,7.0175,142.51,142.45,0.34]
[1720031365263,1.06506174,142.54,142.47,7.0186]
[1720031365264,7.0164,142.53,142.47,7.0186]
[1720031365468,7.0164,142.53,142.48,0.17]
[1720031365856,7.0166,142.52,142.48,0.34]
[1720031366755,7.0171,142.51,142.48,0.34]
[1720031367057,7.0171,142.51,142.46,28.1594]
[1720031367058,7.0171,142.51,142.47,0.34]
[1720031367510,7.0171,142.51,142.47,7.359]
[1720031367964,7.0171,142.51,142.47,0.34]
[1720031368466,7.0164,142.53,142.49,21.14]
[1720031368665,7.0164,142.53,142.5,0.17]
[1720031368967,7.0164,142.53,142.5,0.34]
[1720031370065,17.5369,142.56,142.5,0.34]
[1720031370273,1.06506174,142.55,142.47,17.5469]
[1720031370469,1.06506174,142.55,142.48,0.34]
[1720031370683,7.0174,142.51,142.48,0.34]
[1720031373491,7.0166,142.52,142.48,0.34]
[1720031373786,7.017,142.51,142.48,0.34]
[1720031376285,7.0167,142.52,142.48,0.34]
[1720031376484,1.06506174,142.55,142.44,24.1697]
[1720031376485,7.018,142.49,142.44,31.2033]
[1720031376959,39.8391,142.52,142.42,7.0211]
[1720031377172,7.0191,142.47,142.42,7.0211]
[1720031377670,7.0191,142.47,142.43,7.0209]
[1720031378986,7.0186,142.48,142.43,7.0209]
[1720031379375,1.06506174,142.51,142.42,24.5746]
[1720031379670,7.0191,142.47,142.43,0.34]
[1720031380268,7.0191,142.47,142.43,7.3608]
[1720031380474,7.0186,142.48,142.43,7.3608]
[1720031385481,7.019,142.47,142.43,7.3608]
[1720031386673,7.0187,142.48,142.44,7.0204]
[1720031387584,7.0187,142.48,142.43,0.34]
[1720031387585,18.60306174,142.55,142.46,21.14]
[1720031387779,18.60306174,142.55,142.49,7.0178]
[1720031387780,7.0163,142.53,142.49,7.0178]
[1720031388303,7.0144,142.57,142.52,7.0162]
[1720031388606,7.0154,142.55,142.5,24.7308]
[1720031388906,7.0154,142.55,142.51,7.017]
[1720031389208,7.0154,142.55,142.52,0.17]
[1720031389396,7.0156,142.54,142.5,24.7309]
[1720031389693,7.0156,142.54,142.5,17.7136]
[1720031389887,7.016,142.53,142.5,17.7136]
[1720031390716,7.0157,142.54,142.5,17.7136]
[1720031390868,7.016,142.53,142.5,17.7136]
[1720031391285,7.016,142.53,142.5,0.17]
[1720031392710,17.5379,142.55,142.5,0.17]
[1720031393000,26.56,142.54,142.5,0.17]
[1720031393407,26.56,142.54,142.49,0.17]
[1720031393613,7.0173,142.51,142.48,0.34]
[1720031394615,7.0167,142.52,142.48,7.3583]
[1720031395188,7.0163,142.53,142.49,7.0178]
[1720031396210,32.8639,142.52,142.45,2.95303605]
[1720031396418,26.56,142.49,142.41,15.8893]
[1720031396604,7.0182,142.49,142.44,24.5711]
[1720031398295,7.0186,142.48,142.44,24.5711]
[1720031398506,7.0186,142.48,142.45,0.17]
[1720031398909,7.019,142.47,142.45,0.17]
[1720031399105,26.56,142.47,142.43,0.17]
[1720031399309,7.0205,142.44,142.41,36.3971655]
[1720031399701,7.0202,142.45,142.41,36.3971655]
[1720031400012,7.0202,142.45,142.41,43.4190655]
[1720031400213,7.0205,142.44,142.41,36.3971655]
[1720031400402,7.0201,142.45,142.41,43.4187655]
[1720031401100,7.0201,142.45,142.42,0.17]
[1720031401298,7.0195,142.46,142.42,7.1914]
[1720031401804,26.56,142.49,142.41,18.8431655]
[1720031401998,26.56,142.46,142.41,18.8431655]
[1720031402216,7.0211,142.43,142.41,18.8431655]
[1720031402396,7.0211,142.43,142.41,15.8893]
[1720031402906,7.0211,142.43,142.38,16.5334]
[1720031402907,26.56,142.43,142.38,16.5334]
[1720031403115,7.0228,142.4,142.36,31.0014]
[1720031403413,27.62506174,142.43,142.36,23.9773]
[1720031403646,26.56,142.43,142.36,23.9773]
[1720031404001,7.0225,142.4,142.36,31.0016]
[1720031405012,7.0225,142.4,142.36,24.5845]
[1720031405419,26.56,142.4,142.34,16.5334]
[1720031406616,7.0236,142.38,142.34,16.5334]